bitfinex/quotes_SOLUSD_20260202
["timestamp","ask_amount","ask_price","bid_price","bid_amount"]
[1770044651324,4.24063344,104.29,104.25,8.86927206]
[1770044651618,13.1099055,104.29,104.25,8.86927206]
[1770044651791,4.24063344,104.28,104.25,8.86927206]
[1770044651999,4.24063344,104.28,104.24,8.86927206]
[1770044652198,4.24063344,104.27,104.23,8.86927206]
[1770044652500,4.24063344,104.27,104.24,8.86927206]
[1770044652996,4.24063344,104.27,104.25,8.86927206]
[1770044653314,4.24063344,104.27,104.23,8.86927206]
[1770044653502,4.24063344,104.26,104.22,8.86927206]
[1770044653699,4.24063344,104.26,104.24,8.86927206]
[1770044653905,4.24063344,104.26,104.23,8.86927206]
[1770044654311,4.24063344,104.26,104.22,8.86927206]
[1770044655131,4.24063344,104.25,104.21,8.86927206]
[1770044655411,4.24063344,104.26,104.23,8.86927206]
[1770044655613,4.24063344,104.26,104.22,8.86927206]
[1770044656195,4.27527085,104.29,104.24,8.86927206]
[1770044656196,4.24063344,104.28,104.24,8.86927206]
[1770044656396,4.24063344,104.3,104.26,8.86927206]
[1770044656597,4.24063344,104.29,104.25,8.86927206]
[1770044657213,4.24063344,104.29,104.26,8.86927206]
[1770044657404,4.24063344,104.29,104.27,8.86927206]
[1770044657601,4.24063344,104.31,104.27,8.86927206]
[1770044658500,4.24063344,104.3,104.26,8.86927206]
[1770044658808,4.24063344,104.29,104.25,8.86927206]
[1770044659011,13.1099055,104.28,104.24,8.86927206]
[1770044659404,4.24063344,104.28,104.24,8.86927206]
[1770044659636,13.1099055,104.28,104.24,8.86927206]
[1770044660000,4.3232788,104.27,104.23,8.86927206]
[1770044660419,4.3232788,104.29,104.25,8.86927206]
[1770044660820,13.19255086,104.31,104.27,8.86927206]
[1770044660998,13.19255086,104.31,104.24,11.01384658]
[1770044660999,4.3232788,104.28,104.24,8.86927206]
[1770044661321,4.3232788,104.28,104.25,8.86927206]
[1770044662527,4.3232788,104.27,104.22,11.01536868]
[1770044662729,8.86927206,104.32,104.26,8.86927206]
[1770044662913,0.2,104.36,104.3,8.86927206]
[1770044662914,4.3232788,104.34,104.3,8.86927206]
[1770044663108,0.2,104.36,104.33,8.86927206]
[1770044663304,4.3232788,104.38,104.35,8.86927206]
[1770044663504,4.99957639,104.4,104.37,8.86927206]
[1770044663505,9.32285519,104.4,104.37,8.86927206]
[1770044663830,4.5232788,104.42,104.39,8.86927206]
[1770044664512,4.5232788,104.42,104.38,8.86927206]
[1770044664720,4.3232788,104.41,104.36,9.5817948]
[1770044664923,4.3232788,104.41,104.38,8.86927206]
[1770044665100,4.3232788,104.4,104.36,8.86927206]
[1770044665307,4.5232788,104.42,104.39,8.86927206]
[1770044667020,13.19255086,104.41,104.37,8.86927206]
[1770044667224,4.3232788,104.39,104.35,8.86927206]
[1770044667403,4.3232788,104.38,104.35,8.86927206]
[1770044667608,4.3232788,104.4,104.36,8.86927206]
[1770044667907,4.3232788,104.4,104.33,10.80558216]
[1770044668112,4.3232788,104.38,104.34,8.86927206]
[1770044668702,8.86927206,104.39,104.32,9.58541166]
[1770044668703,4.3232788,104.36,104.32,8.86927206]
[1770044668919,4.3232788,104.38,104.35,8.86927206]
[1770044669506,4.3232788,104.38,104.33,9.58446772]
[1770044669724,4.3232788,104.38,104.34,8.86927206]
[1770044670110,4.3232788,104.38,104.35,8.86927206]
[1770044670508,4.3232788,104.36,104.32,8.86927206]
[1770044671428,4.3232788,104.38,104.34,8.86927206]
[1770044671628,4.3232788,104.39,104.36,8.86927206]
[1770044671837,26.2832788,104.41,104.37,8.86927206]
[1770044672045,0.2,104.42,104.4,8.86927206]
[1770044672701,4.5232788,104.42,104.39,8.86927206]
[1770044672904,4.3232788,104.41,104.37,8.86927206]
[1770044673122,4.3232788,104.4,104.36,8.86927206]
[1770044673332,4.3232788,104.39,104.33,26.64]
[1770044673529,4.3232788,104.37,104.33,8.86927206]
[1770044673713,4.3232788,104.36,104.32,8.86927206]
[1770044673908,4.3232788,104.35,104.32,8.86927206]
[1770044674212,4.3232788,104.35,104.31,39.5084659]
[1770044674418,13.19255086,104.34,104.29,8.86927206]
[1770044675335,13.19255086,104.34,104.3,8.86927206]
[1770044675537,4.3232788,104.34,104.3,8.86927206]
[1770044675746,4.3232788,104.33,104.29,8.86927206]
[1770044675920,4.3232788,104.32,104.28,8.86927206]
[1770044676434,26.2832788,104.34,104.3,8.86927206]
[1770044676919,26.2832788,104.34,104.31,8.86927206]
[1770044677114,4.3232788,104.34,104.31,8.86927206]
[1770044677320,4.3232788,104.34,104.3,8.86927206]
[1770044677721,4.3232788,104.34,104.31,8.86927206]
[1770044677920,4.3232788,104.34,104.3,8.86927206]
[1770044678319,4.3232788,104.36,104.32,8.86927206]
[1770044678629,4.3232788,104.39,104.3,9.8719949]
[1770044678936,4.3232788,104.36,104.33,8.86927206]
[1770044679940,13.19255086,104.36,104.31,8.86927206]
[1770044680237,13.19255086,104.36,104.24,48.22348564]
[1770044680238,4.3232788,104.33,104.27,9.5900351]
[1770044680439,4.3232788,104.32,104.26,10.81185519]
[1770044680611,4.3232788,104.32,104.28,8.86927206]
[1770044680929,8.86927206,104.33,104.27,9.59025851]
[1770044680930,26.3232788,104.34,104.3,8.86927206]
[1770044681136,4.3232788,104.34,104.28,1.22092055]
[1770044681329,4.3232788,104.34,104.31,8.86927206]
[1770044682030,4.3232788,104.33,104.29,8.86927206]
[1770044682223,4.3232788,104.32,104.28,8.86927206]
[1770044682818,4.3232788,104.32,104.28,18.45871283]
[1770044683134,4.3232788,104.32,104.27,9.59003224]
[1770044683336,13.19255086,104.32,104.28,8.86927206]
[1770044683537,4.3232788,104.3,104.26,18.4605564]
[1770044683736,4.3232788,104.3,104.27,8.86927206]
[1770044683941,4.3232788,104.3,104.26,8.86927206]
[1770044684320,4.3232788,104.29,104.25,8.86927206]
[1770044685924,4.3232788,104.26,104.22,8.86927206]
[1770044686250,4.3232788,104.24,104.21,34.24418869]
[1770044686926,4.3232788,104.22,104.21,29.74418869]
[1770044687127,4.3232788,104.21,104.14,28.31260202]
[1770044687339,4.3232788,104.2,104.16,8.86927206]
[1770044687538,26.3432788,104.22,104.18,8.86927206]
[1770044687746,22.02,104.22,104.19,8.86927206]
[1770044687932,35.38358709,104.26,104.21,8.86927206]
[1770044688135,13.36358709,104.25,104.21,8.86927206]
[1770044688340,13.36358709,104.25,104.2,8.86927206]
[1770044688832,4.49431503,104.25,104.21,8.86927206]
[1770044689146,4.49431503,104.25,104.2,8.86927206]
[1770044689147,4.49431503,104.24,104.2,8.86927206]
[1770044689528,8.86927206,104.26,104.21,8.86927206]
[1770044689735,35.19510182,104.26,104.22,8.86927206]
[1770044690245,13.15510182,104.24,104.2,8.86927206]
[1770044690449,4.28582976,104.24,104.2,8.85831906]
[1770044691439,4.28582976,104.24,104.21,8.85831906]
[1770044692249,35.18414882,104.26,104.21,8.85831906]
[1770044692450,35.18414882,104.26,104.21,18.45412895]
[1770044692638,35.18414882,104.26,104.21,8.85831906]
[1770044692843,4.28582976,104.25,104.21,8.85831906]
[1770044693548,4.28582976,104.25,104.21,18.45432558]
[1770044693744,4.28582976,104.25,104.22,8.85831906]
[1770044694159,4.28582976,104.25,104.21,8.85831906]
[1770044695453,4.28582976,104.25,104.22,8.85831906]
[1770044695843,13.14414882,104.27,104.23,8.85831906]
[1770044696043,4.27527085,104.29,104.24,8.85831906]
[1770044696044,8.85831906,104.28,104.24,8.85831906]
[1770044696245,26.38582976,104.29,104.24,8.85831906]
[1770044696246,35.24414882,104.29,104.24,8.85831906]
[1770044696451,4.28582976,104.29,104.25,8.85831906]
[1770044696755,4.28582976,104.28,104.25,8.85831906]
[1770044697653,4.5701529,104.3,104.26,8.85831906]
[1770044697833,9.1426422,104.3,104.25,8.85831906]
[1770044698153,4.28582976,104.29,104.26,8.85831906]
[1770044698352,4.28582976,104.3,104.26,8.85831906]
[1770044698544,13.14414882,104.3,104.25,8.85831906]
[1770044698753,13.14414882,104.29,104.25,8.85831906]
[1770044698933,4.28582976,104.29,104.25,8.85831906]
[1770044699140,26.38582976,104.31,104.27,8.85831906]
[1770044699473,4.28582976,104.33,104.29,8.85831906]
[1770044699648,4.28582976,104.33,104.3,8.85831906]
[1770044699956,4.28582976,104.35,104.29,4.24145928]
[1770044700155,4.28582976,104.37,104.33,8.85831906]
[1770044700755,4.28582976,104.37,104.3,8.85831906]
[1770044700756,4.28582976,104.34,104.3,8.85831906]
[1770044701052,4.28582976,104.38,104.33,8.85831906]
[1770044701253,4.28582976,104.38,104.34,8.85831906]
[1770044701446,4.28582976,104.38,104.35,8.85831906]
[1770044701647,4.28582976,104.36,104.32,8.85831906]
[1770044702148,4.28582976,104.35,104.3,13.09977834]
[1770044702342,4.27527085,104.38,104.33,8.85831906]
[1770044702343,4.28582976,104.37,104.33,8.85831906]
[1770044702548,4.28582976,104.38,104.34,8.85831906]
[1770044702744,13.14414882,104.38,104.33,13.09977834]
[1770044702956,13.14414882,104.36,104.31,8.85831906]
[1770044703249,4.28582976,104.34,104.3,8.85831906]
[1770044703456,4.28582976,104.32,104.28,8.85831906]
[1770044704037,4.28582976,104.32,104.26,13.83238938]
[1770044704038,4.28582976,104.29,104.24,4.24145928]
[1770044704242,8.85831906,104.3,104.23,8.85831906]
[1770044704243,13.14414882,104.28,104.23,8.85831906]
[1770044704446,4.28582976,104.26,104.22,8.85831906]
[1770044704673,13.14414882,104.26,104.21,8.85831906]
[1770044704870,22.14,104.28,104.22,8.85831906]
[1770044704871,8.85831906,104.27,104.22,8.85831906]
[1770044705159,13.14414882,104.28,104.24,8.85831906]
[1770044705556,13.14414882,104.27,104.22,8.85831906]
[1770044706467,8.85831906,104.26,104.22,8.85831906]
[1770044706654,13.14414882,104.26,104.21,13.09977834]
[1770044707164,13.14414882,104.24,104.2,8.85831906]
[1770044707364,4.28582976,104.24,104.2,8.85831906]
[1770044707546,13.14414882,104.24,104.19,8.85831906]
[1770044707741,22.14,104.26,104.2,4.24145928]
[1770044707942,4.28582976,104.29,104.23,4.24145928]
[1770044708261,4.28582976,104.27,104.23,8.85831906]
[1770044708471,13.14414882,104.27,104.22,8.85831906]
[1770044708662,4.28582976,104.27,104.22,8.85831906]
[1770044708848,4.28582976,104.27,104.23,8.85831906]
[1770044709044,13.14414882,104.27,104.23,8.85831906]
[1770044709264,4.28582976,104.25,104.21,8.85831906]
[1770044709472,13.14414882,104.25,104.2,8.85831906]
[1770044709763,4.5701529,104.28,104.22,8.85831906]
[1770044709960,4.28582976,104.27,104.23,8.85831906]
[1770044710269,4.28582976,104.27,104.24,8.85831906]
[1770044710447,4.28582976,104.27,104.23,8.85831906]
[1770044710861,4.28582976,104.24,104.2,8.85831906]
[1770044711651,4.28582976,104.26,104.22,8.85831906]
[1770044711868,4.28582976,104.24,104.2,8.85831906]
[1770044712046,13.14414882,104.24,104.2,8.85831906]
[1770044712367,4.28582976,104.24,104.2,8.85831906]
[1770044712548,13.42847196,104.26,104.21,8.85831906]
[1770044712746,13.42847196,104.26,104.2,13.83816182]
[1770044712970,13.14414882,104.24,104.19,8.85831906]
[1770044713267,4.28582976,104.24,104.2,8.85831906]
[1770044713460,35.56847196,104.26,104.21,8.85831906]
[1770044713666,4.28582976,104.25,104.21,8.85831906]
[1770044714553,13.14414882,104.25,104.2,8.85831906]
[1770044714876,13.42847196,104.24,104.19,13.09977834]
[1770044715454,13.42847196,104.24,104.19,8.85831906]
[1770044715649,4.28582976,104.23,104.19,18.45615994]
[1770044715962,13.14414882,104.23,104.18,13.09977834]
[1770044716168,13.14414882,104.23,104.18,22.6980136]
[1770044716374,4.28582976,104.23,104.19,8.85831906]
[1770044717572,4.28582976,104.23,104.19,18.45603676]
[1770044717777,0.28432314,104.26,104.22,13.09977834]
[1770044718080,13.14414882,104.28,104.23,13.09977834]
[1770044718451,8.85831906,104.29,104.24,13.09977834]
[1770044718748,5.36086188,104.33,104.28,8.85831906]
[1770044718749,13.14414882,104.33,104.28,8.85831906]
[1770044719055,13.14414882,104.32,104.27,8.85831906]
[1770044719466,4.28582976,104.32,104.28,8.85831906]
[1770044720052,4.33830743,104.31,104.27,8.85831906]
[1770044720364,4.33830743,104.28,104.24,8.85831906]
[1770044720568,13.19662649,104.28,104.23,8.85831906]
[1770044720776,4.33830743,104.28,104.24,8.85831906]
[1770044720950,13.19662649,104.28,104.24,8.85831906]
[1770044721376,4.33830743,104.28,104.24,8.85831906]
[1770044721777,22.42432314,104.29,104.25,8.85831906]
[1770044721980,22.14,104.29,104.26,8.85831906]
[1770044722476,22.14,104.29,104.25,8.85831906]
[1770044722954,22.14,104.29,104.26,8.85831906]
[1770044723478,4.33830743,104.32,104.28,8.85831906]
[1770044724570,31.3026422,104.33,104.26,9.59135428]
[1770044724571,4.33830743,104.3,104.26,8.85831906]
[1770044724965,4.33830743,104.3,104.27,8.85831906]
[1770044725282,4.33830743,104.32,104.28,8.85831906]
[1770044725577,22.2,104.34,104.3,8.85831906]
[1770044725578,4.33830743,104.34,104.3,8.85831906]
[1770044725975,0.14216157,104.33,104.29,8.85831906]
[1770044726152,13.19662649,104.34,104.3,8.85831906]
[1770044726576,13.19662649,104.32,104.27,8.85831906]
[1770044726971,13.19662649,104.3,104.26,8.85831906]
[1770044727188,13.19662649,104.3,104.24,4.12974054]
[1770044727359,26.51527085,104.33,104.24,12.9880596]
[1770044727360,13.48094963,104.29,104.24,12.9880596]
[1770044727559,4.62263057,104.26,104.22,8.85831906]
[1770044727781,4.33830743,104.25,104.21,8.85831906]
[1770044728180,13.19662649,104.25,104.2,12.9880596]
[1770044728380,8.85831906,104.24,104.2,12.9880596]
[1770044728582,13.19662649,104.25,104.2,12.9880596]
[1770044728879,13.19662649,104.25,104.2,4.12974054]
[1770044729196,13.19662649,104.25,104.2,12.9880596]
[1770044729478,13.48094963,104.24,104.18,4.12974054]
[1770044729690,13.48094963,104.24,104.19,8.85831906]
[1770044729984,22.24,104.25,104.21,8.85831906]
[1770044730177,26.57830743,104.25,104.21,8.85831906]
[1770044730485,13.19662649,104.25,104.2,12.9880596]
[1770044730660,13.48094963,104.24,104.2,8.85831906]
[1770044731484,4.62263057,104.24,104.2,8.85831906]
[1770044731679,13.19662649,104.23,104.18,4.12974054]
[1770044731981,13.19662649,104.23,104.18,12.9880596]
[1770044732170,13.19662649,104.23,104.18,8.85831906]
[1770044732171,4.33830743,104.22,104.18,8.85831906]
[1770044732774,13.19662649,104.23,104.18,12.9880596]
[1770044732969,13.19662649,104.23,104.19,8.85831906]
[1770044734389,13.19662649,104.27,104.22,8.85831906]
[1770044734575,4.33830743,104.25,104.21,8.85831906]
[1770044734772,13.19662649,104.25,104.2,8.85831906]
[1770044735283,8.85831906,104.3,104.23,8.85831906]
[1770044735284,13.19662649,104.27,104.23,8.85831906]
[1770044735491,13.19662649,104.27,104.22,8.85831906]
[1770044735989,13.19662649,104.27,104.23,8.85831906]
[1770044735990,4.33830743,104.27,104.23,8.85831906]
[1770044736189,4.33830743,104.31,104.26,8.85831906]
[1770044736378,4.33830743,104.31,104.28,8.85831906]
[1770044736583,4.33830743,104.31,104.27,8.85831906]
[1770044736785,4.33830743,104.35,104.3,8.85831906]
[1770044736995,4.33830743,104.35,104.32,8.85831906]
[1770044737288,4.33830743,104.34,104.31,8.85831906]
[1770044737597,4.33830743,104.34,104.3,8.85831906]
[1770044737794,4.33830743,104.32,104.28,8.85831906]
[1770044739169,13.19662649,104.32,104.28,8.85831906]
[1770044739571,13.19662649,104.32,104.27,12.9880596]
[1770044739776,4.62263057,104.31,104.27,8.85831906]
[1770044739995,13.48094963,104.31,104.27,8.85831906]
[1770044740295,4.62263057,104.31,104.27,8.85831906]
[1770044740688,4.33830743,104.28,104.24,8.85831906]
[1770044740989,13.19662649,104.25,104.2,12.9880596]
[1770044741192,4.33830743,104.23,104.19,8.85831906]
[1770044741574,4.62263057,104.24,104.2,8.85831906]
[1770044741784,4.33830743,104.24,104.2,8.85831906]
[1770044741985,4.62263057,104.25,104.21,8.85831906]
[1770044742572,4.33830743,104.24,104.2,8.85831906]
[1770044742773,4.33830743,104.24,104.19,4.12974054]
[1770044742774,13.19662649,104.24,104.19,12.9880596]
[1770044742973,13.19662649,104.24,104.2,8.85831906]
[1770044743175,13.19662649,104.24,104.19,4.12974054]
[1770044743176,13.48094963,104.23,104.19,8.85831906]
[1770044743485,4.62263057,104.23,104.19,8.85831906]
[1770044743888,4.33830743,104.23,104.2,8.85831906]
[1770044744479,0.28432314,104.24,104.2,8.85831906]
[1770044744899,13.48094963,104.24,104.19,8.85831906]
[1770044745099,13.48094963,104.24,104.2,8.85831906]
[1770044745100,4.62263057,104.24,104.2,8.85831906]
[1770044745594,13.48094963,104.24,104.2,8.85831906]
[1770044746398,4.33830743,104.24,104.21,8.85831906]
[1770044746905,4.33830743,104.24,104.2,8.85831906]
[1770044747279,4.33830743,104.21,104.15,9.60091746]
[1770044747604,4.33830743,104.21,104.14,8.40501139]
[1770044747605,13.19662649,104.19,104.14,4.12974054]
[1770044747899,13.5621281,104.17,104.13,0.1]
[1770044748289,4.4194859,104.14,104.1,0.1]
[1770044748604,4.4194859,104.14,104.1,8.95831906]
[1770044749099,4.4194859,104.14,104.05,0.1]
[1770044749100,4.4194859,104.09,104.05,0.1]
[1770044749300,13.27780496,104.06,104.0,4.14020288]
[1770044749596,0.28432314,104.06,104.01,4.14020288]
[1770044749788,22.56432314,104.08,104.03,8.85831906]
[1770044749974,26.34879241,104.09,104.05,8.85831906]
[1770044750391,26.34879241,104.09,104.04,8.85831906]
[1770044750601,4.06879241,104.07,104.0,4.12775785]
[1770044750900,12.92711147,104.06,104.01,8.85831906]
[1770044751477,8.85831906,104.07,104.02,12.98607691]
[1770044751680,12.92711147,104.09,104.04,4.12775785]
[1770044751981,12.92711147,104.09,104.04,12.98607691]
[1770044752488,12.95455254,104.09,104.04,13.01351798]
[1770044752887,4.06879241,104.07,104.03,8.88576013]
[1770044753091,4.35311555,104.09,104.03,13.01351798]
[1770044753292,12.95455254,104.08,104.03,4.12775785]
[1770044753494,12.95455254,104.06,104.01,4.12775785]
[1770044753684,8.88576013,104.07,104.02,8.88576013]
[1770044754089,35.25455254,104.08,104.03,8.88576013]
[1770044754289,4.06879241,104.1,104.04,4.12775785]
[1770044754492,8.88576013,104.08,104.03,8.88576013]
[1770044754681,8.88576013,104.08,104.03,13.01351798]
[1770044754882,12.95455254,104.09,104.04,8.88576013]
[1770044755182,12.95455254,104.09,104.05,8.88576013]
[1770044755183,4.06879241,104.09,104.05,8.88576013]
[1770044755379,13.09671411,104.08,104.03,8.88576013]
[1770044755584,4.06879241,104.06,104.02,8.88576013]
[1770044755798,8.88576013,104.07,104.02,8.88576013]
[1770044756007,22.3,104.11,104.05,4.12775785]
[1770044756008,4.06879241,104.1,104.05,4.12775785]
[1770044756304,22.3,104.11,104.07,8.88576013]
[1770044756488,12.95455254,104.12,104.07,13.01351798]
[1770044756686,12.95455254,104.1,104.03,13.74030708]
[1770044756886,12.95455254,104.09,104.04,8.88576013]
[1770044757089,4.06879241,104.09,104.05,8.88576013]
[1770044757295,12.95455254,104.08,104.03,8.88576013]
[1770044758096,12.95455254,104.08,104.03,13.01351798]
[1770044758303,12.95455254,104.07,104.02,8.88576013]
[1770044758605,4.06879241,104.05,103.99,13.74348787]
[1770044758813,8.88576013,104.04,103.99,22.629248]
[1770044758980,8.88576013,104.04,103.99,13.01351798]
[1770044759184,12.95455254,104.05,104.0,8.88576013]
[1770044759407,12.95455254,104.04,103.99,13.01351798]
[1770044759794,8.88576013,104.03,103.99,4.12775785]
[1770044760009,8.88576013,104.03,103.99,13.01351798]
[1770044760197,4.06879241,104.04,103.99,13.01351798]
[1770044760198,12.95455254,104.04,103.99,13.01351798]
[1770044760586,4.35311555,104.06,104.02,8.88576013]
[1770044760783,4.35311555,104.06,104.01,13.01351798]
[1770044760784,12.95455254,104.06,104.01,13.01351798]
[1770044761003,12.95455254,104.04,104.0,8.88576013]
[1770044761211,4.06879241,104.04,104.0,8.88576013]
[1770044761408,4.06879241,104.04,104.01,8.88576013]
[1770044761615,4.06879241,104.04,104.0,8.88576013]
[1770044762314,8.88576013,104.05,104.0,8.88576013]
[1770044762503,12.95455254,104.08,104.03,8.88576013]
[1770044762812,8.88576013,104.05,104.0,13.01351798]
[1770044763013,8.88576013,104.04,104.0,4.12775785]
[1770044763216,9.0279217,104.08,104.03,13.01351798]
[1770044763404,4.06879241,104.08,104.04,8.88576013]
[1770044763718,26.40879241,104.1,104.05,8.88576013]
[1770044763912,26.40879241,104.1,104.06,8.88576013]
[1770044763913,4.06879241,104.1,104.06,8.88576013]
[1770044765404,4.06879241,104.12,104.08,8.88576013]
[1770044765600,4.06879241,104.09,104.04,13.01351798]
[1770044765808,4.06879241,104.09,104.05,8.88576013]
[1770044766395,12.95455254,104.09,104.04,13.01351798]
[1770044766621,4.06879241,104.09,104.06,8.88576013]
[1770044767023,35.29455254,104.11,104.06,8.88576013]
[1770044767233,26.40879241,104.11,104.07,8.88576013]
[1770044767409,12.95455254,104.13,104.08,8.88576013]
[1770044768101,4.06879241,104.13,104.09,8.88576013]
[1770044768304,4.06879241,104.13,104.08,4.12775785]
[1770044768615,4.06879241,104.13,104.09,8.88576013]
[1770044768815,22.34,104.14,104.1,8.88576013]
[1770044769293,22.34,104.14,104.11,8.88576013]
[1770044769501,22.34,104.14,104.1,8.88576013]
[1770044769906,26.40879241,104.14,104.1,8.88576013]
[1770044770105,35.29455254,104.14,104.1,8.88576013]
[1770044770701,35.29455254,104.14,104.09,13.01351798]
[1770044771101,26.40879241,104.14,104.1,8.88576013]
[1770044771505,22.34,104.14,104.1,13.01351798]
[1770044772095,4.27527085,104.18,104.12,8.88576013]
[1770044772096,12.95455254,104.17,104.12,8.88576013]
[1770044772297,4.06879241,104.17,104.13,8.88576013]
[1770044772517,4.06879241,104.17,104.14,8.88576013]
[1770044772720,31.46576013,104.19,104.16,13.01351798]
[1770044772721,0.2,104.19,104.16,13.01351798]
[1770044772897,0.2,104.19,104.16,4.12775785]
[1770044773101,0.2,104.19,104.16,13.01351798]
[1770044773516,9.08576013,104.19,104.14,8.88576013]
[1770044773721,12.95455254,104.18,104.14,8.88576013]
[1770044773916,4.06879241,104.18,104.14,8.88576013]
[1770044774111,0.2,104.19,104.16,8.88576013]
[1770044774703,4.06879241,104.18,104.14,8.88576013]
[1770044775026,12.95455254,104.18,104.13,8.88576013]
[1770044775317,4.06879241,104.18,104.14,8.88576013]
[1770044775510,4.06879241,104.18,104.15,8.88576013]
[1770044775709,4.06879241,104.18,104.14,8.88576013]
[1770044775912,4.06879241,104.17,104.14,8.88576013]
[1770044777017,4.26879241,104.19,104.15,8.88576013]
[1770044777326,4.26879241,104.19,104.16,8.88576013]
[1770044777632,4.06879241,104.16,104.11,13.01351798]
[1770044777832,4.06879241,104.16,104.12,8.88576013]
[1770044777833,12.95455254,104.16,104.12,8.88576013]
[1770044778019,8.88576013,104.15,104.11,13.01351798]
[1770044778324,4.06879241,104.14,104.1,8.88576013]
[1770044779511,12.95455254,104.14,104.1,8.88576013]
[1770044779712,4.06879241,104.14,104.1,8.88576013]
[1770044780419,4.37653468,104.16,104.13,8.88576013]
[1770044781128,4.37653468,104.16,104.12,8.88576013]
[1770044781336,4.66085782,104.15,104.11,8.88576013]
[1770044781516,4.37653468,104.14,104.1,8.88576013]
[1770044781715,4.37653468,104.13,104.09,8.88576013]
[1770044781922,4.37653468,104.13,104.1,8.88576013]
[1770044782436,4.37653468,104.13,104.09,8.88576013]
[1770044782747,13.26229481,104.13,104.09,8.88576013]
[1770044783032,4.37653468,104.13,104.09,8.88576013]
[1770044784213,13.26229481,104.12,104.07,18.49460103]
[1770044784433,22.4,104.14,104.07,18.49460103]
[1770044784434,35.66229481,104.14,104.1,8.88576013]
[1770044784627,13.26229481,104.13,104.08,8.88576013]
[1770044784829,4.37653468,104.11,104.07,8.88576013]
[1770044785415,4.37653468,104.12,104.08,8.88576013]
[1770044786835,4.37653468,104.12,104.08,18.49362959]
[1770044787028,4.37653468,104.12,104.09,8.88576013]
[1770044787425,35.66229481,104.14,104.09,8.88576013]
[1770044787627,4.37653468,104.13,104.09,8.88576013]
[1770044788138,13.26229481,104.13,104.09,8.88576013]
[1770044788540,4.37653468,104.14,104.1,13.08025023]
[1770044788840,4.37653468,104.14,104.1,8.88576013]
[1770044789350,4.37653468,104.13,104.1,8.88576013]
[1770044790743,4.37653468,104.13,104.09,13.08025023]
[1770044790929,4.37653468,104.13,104.09,8.88576013]
[1770044791329,4.37653468,104.13,104.1,8.88576013]
[1770044791519,26.81653468,104.15,104.11,13.08025023]
[1770044791720,8.88576013,104.14,104.09,8.88576013]
[1770044792026,13.26229481,104.13,104.08,8.88576013]
[1770044792345,13.26229481,104.13,104.09,8.88576013]
[1770044792538,4.37653468,104.13,104.09,8.88576013]
[1770044792741,4.37653468,104.13,104.09,18.49278466]
[1770044792939,4.37653468,104.13,104.09,8.88576013]
[1770044793322,4.37653468,104.13,104.1,8.88576013]
[1770044793528,4.37653468,104.14,104.1,8.88576013]
[1770044794234,4.37653468,104.14,104.11,8.88576013]
[1770044794758,4.37653468,104.16,104.12,8.88576013]
[1770044794944,4.37653468,104.14,104.1,18.49145078]
[1770044795146,4.37653468,104.14,104.11,8.88576013]
[1770044795959,4.37653468,104.14,104.11,18.49092347]
[1770044796126,4.37653468,104.14,104.11,8.88576013]
[1770044796447,4.37653468,104.14,104.1,13.80011712]
[1770044796448,4.37653468,104.14,104.1,22.68628449]
[1770044796747,13.26229481,104.14,104.1,8.88576013]
[1770044796927,4.37653468,104.13,104.09,18.49249327]
[1770044797126,4.37653468,104.13,104.09,18.01213327]
[1770044797652,4.37653468,104.13,104.1,8.88576013]
[1770044798024,4.37653468,104.13,104.09,18.01213327]
[1770044798449,4.37653468,104.1,104.06,13.08025023]
[1770044798749,13.26229481,104.09,104.04,24.93879485]
[1770044798959,13.26229481,104.09,103.99,26.7]
[1770044798960,0.28432314,104.11,104.06,4.1944901]
[1770044799129,13.26229481,104.14,104.09,13.08025023]
[1770044799449,4.37653468,104.14,104.12,8.88576013]
[1770044799751,4.37653468,104.18,104.13,8.88576013]
[1770044799936,13.26229481,104.17,104.12,13.08025023]
[1770044800136,4.37653468,104.17,104.13,8.88576013]
[1770044800330,4.57653468,104.19,104.13,4.1944901]
[1770044800564,4.57653468,104.19,104.16,8.88576013]
[1770044800731,57.60229431,104.3,104.16,8.88576013]
[1770044800732,4.37653468,104.23,104.18,13.08025023]
[1770044801047,8.88576013,104.24,104.16,24.00065601]
[1770044801048,4.37653468,104.2,104.16,8.88576013]
[1770044801552,4.37653468,104.18,104.14,8.88576013]
[1770044801751,4.37653468,104.17,104.13,8.88576013]
[1770044802334,13.54661795,104.19,104.14,8.88576013]
[1770044802548,4.37653468,104.18,104.14,8.88576013]
[1770044802850,13.26229481,104.17,104.13,8.88576013]
[1770044803052,13.26229481,104.17,104.11,13.79925988]
[1770044803053,4.37653468,104.17,104.12,13.08025023]
[1770044803257,4.37653468,104.16,104.12,13.08025023]
[1770044803750,35.74229481,104.18,104.13,13.08025023]
[1770044804054,35.74229481,104.18,104.13,8.88576013]
[1770044804055,4.37653468,104.17,104.13,8.88576013]
[1770044805450,8.88576013,104.18,104.13,8.88576013]
[1770044805451,4.37653468,104.22,104.17,4.1944901]
[1770044805656,4.37653468,104.22,104.13,33.61147287]
[1770044805657,4.37653468,104.22,104.19,8.88576013]
[1770044806046,4.37653468,104.24,104.2,8.88576013]
[1770044806440,4.37653468,104.22,104.18,8.88576013]
[1770044806644,4.37653468,104.21,104.15,4.1944901]
[1770044806841,4.37653468,104.2,104.17,8.88576013]